bitfinex/quotes_ETHUSD_20241129
["timestamp","ask_amount","ask_price","bid_price","bid_amount"]
[1732885226157,2.78429,3591.6,3591.0,2.78473]
[1732885226740,2.78421,3591.7,3591.1,2.78465]
[1732885227434,2.78428,3591.6,3591.1,2.78465]
[1732885228159,2.7842,3591.7,3591.1,2.78465]
[1732885228520,2.78429,3591.6,3591.1,2.78465]
[1732885229620,2.78429,3591.6,3590.9,2.78481]
[1732885229821,2.78429,3591.6,3590.9,2.78475]
[1732885230262,2.78429,3591.6,3591.0,0.55]
[1732885230463,5.56832,3591.8,3591.0,0.55]
[1732885230660,2.78428,3591.6,3591.2,0.55]
[1732885232031,2.78404,3591.9,3591.3,3.55982]
[1732885232721,3.21558,3592.1,3591.3,3.55982]
[1732885232722,2.78375,3592.3,3591.9,0.55]
[1732885233748,2.78391,3592.1,3591.9,0.55]
[1732885234082,2.78391,3592.1,3590.4,2.9326872]
[1732885234083,2.78413,3591.8,3591.2,0.7565]
[1732885234292,2.78427,3591.6,3591.3,0.55]
[1732885234471,2.78413,3591.8,3591.3,0.55]
[1732885234785,2.78399,3592.0,3591.3,0.55]
[1732885235082,5.78383,3592.2,3591.5,3.33434]
[1732885235238,2.78375,3592.3,3591.9,0.55]
[1732885237871,2.78381,3592.2,3591.9,0.55]
[1732885238272,2.78396,3592.0,3591.9,0.55]
[1732885238484,2.78383,3592.2,3591.9,0.55]
[1732885238792,2.78389,3592.1,3591.9,0.55]
[1732885239247,2.78371,3592.4,3591.9,0.55]
[1732885239650,2.78374,3592.3,3591.9,0.55]
[1732885240058,2.78357,3592.5,3591.9,0.55]
[1732885240255,2.78366,3592.4,3591.9,0.55]
[1732885241779,2.78374,3592.3,3591.9,0.55]
[1732885242157,2.78361,3592.5,3591.9,0.55]
[1732885242346,2.78378,3592.3,3591.9,0.55]
[1732885243392,0.59869061,3592.5,3591.9,0.55]
[1732885243689,2.78377,3592.3,3591.9,0.55]
[1732885243895,2.78366,3592.4,3591.9,3.33399]
[1732885244430,2.78359,3592.5,3592.0,2.78395]
[1732885244686,2.78359,3592.5,3592.1,0.55]
[1732885244856,2.78359,3592.5,3592.2,0.8024]
[1732885245492,2.78366,3592.4,3592.2,0.8024]
[1732885246953,3.0,3593.0,3592.3,0.55]
[1732885247173,4.19862561,3593.0,3592.3,0.55]
[1732885247375,2.78346,3592.7,3592.3,0.55]
[1732885247886,2.78357,3592.5,3592.3,0.55]
[1732885248673,2.78365,3592.4,3592.3,0.55]
[1732885249100,2.7838,3592.2,3591.4,0.7735]
[1732885249432,2.78403,3592.0,3591.4,3.55785]
[1732885249707,2.78403,3592.0,3591.4,0.7735]
[1732885249915,2.78403,3592.0,3591.5,2.78434]
[1732885250203,2.78368,3592.4,3591.7,2.78414]
[1732885250390,2.78368,3592.4,3591.9,0.55]
[1732885250771,2.78396,3592.1,3591.9,0.55]
[1732885250971,2.78393,3592.1,3591.9,0.55]
[1732885251171,2.78396,3592.0,3591.9,0.55]
[1732885251419,2.78435,3591.5,3591.3,0.8321]
[1732885251575,2.78424,3591.7,3591.3,0.8321]
[1732885252210,5.98706606,3592.3,3591.3,0.8321]
[1732885252394,5.5685,3591.7,3591.3,0.8321]
[1732885252796,2.78435,3591.5,3591.4,0.55]
[1732885253112,2.78435,3591.5,3591.3,0.8321]
[1732885253270,2.78443,3591.4,3591.1,0.55]
[1732885254717,2.78458,3591.2,3591.1,0.55]
[1732885255404,2.78466,3591.1,3591.0,0.7575]
[1732885255609,2.78466,3591.1,3590.6,3.0]
[1732885255610,2.78466,3591.1,3590.7,0.8295]
[1732885256202,2.78461,3591.2,3590.7,1.46337699]
[1732885256435,2.78466,3591.1,3590.7,1.46337699]
[1732885256611,2.78466,3591.1,3590.8,0.55]
[1732885257219,2.78458,3591.2,3590.8,0.55]
[1732885258045,2.78478,3591.0,3590.8,0.55]
[1732885258913,0.1533,3591.6,3590.8,0.55]
[1732885259106,2.78463,3591.2,3590.8,0.55]
[1732885260502,2.78463,3591.2,3590.8,1.266446]
[1732885263038,0.1533,3591.6,3590.7,0.8295]
[1732885263238,2.78489,3590.8,3590.1,4.12483]
[1732885263738,0.1533,3591.0,3590.1,0.7894]
[1732885263905,2.78525,3590.4,3590.1,0.7894]
[1732885264356,0.1533,3591.4,3590.4,0.7894]
[1732885264519,2.8879264,3591.3,3590.4,0.7894]
[1732885264699,2.78472,3591.1,3590.5,2.78512]
[1732885265024,0.1033864,3591.0,3590.6,0.55]
[1732885265223,0.1033864,3591.2,3590.8,1.3102]
[1732885266607,2.78453,3591.3,3590.8,1.3102]
[1732885267000,2.78459,3591.2,3590.8,1.3102]
[1732885267445,2.78442,3591.5,3590.8,1.88128296]
[1732885267657,0.10339298,3591.4,3591.2,1.3519]
[1732885267804,0.10340657,3591.8,3591.3,2.7845]
[1732885268624,2.88752657,3591.8,3591.2,4.13648]
[1732885268938,2.88762657,3591.7,3591.2,1.3519]
[1732885269136,2.78428,3591.6,3591.2,1.3519]
[1732885270231,2.78443,3591.4,3591.2,1.3519]
[1732885270425,2.78443,3591.4,3590.9,0.7757]
[1732885270629,0.1533,3591.7,3590.6,0.7757]
[1732885270832,2.78494,3590.8,3590.6,0.7757]
[1732885271623,2.78476,3591.0,3590.6,0.7757]
[1732885271827,2.78468,3591.1,3590.6,0.7757]
[1732885272328,2.78417,3591.8,3590.9,3.54506]
[1732885272532,2.88769751,3591.7,3591.1,2.7846]
[1732885272732,0.10343751,3591.6,3591.2,0.55]
[1732885274260,0.10345506,3591.6,3591.2,0.55]
[1732885274435,0.10345506,3591.6,3591.3,3.5379]
[1732885274631,0.10345506,3591.8,3591.5,2.78435]
[1732885274862,0.10345506,3591.9,3591.5,2.78435]
[1732885275064,2.88754282,3591.9,3591.4,0.55]
[1732885275358,2.78406,3591.9,3591.4,0.55]
[1732885275667,2.78412,3591.8,3591.4,0.55]
[1732885275820,2.78405,3591.9,3591.4,0.55]
[1732885276317,0.10350046,3591.8,3591.4,0.55]
[1732885276519,2.78365,3592.4,3591.8,0.55]
[1732885276758,0.40755144,3592.3,3591.8,0.55]
[1732885276958,0.10350585,3592.2,3591.8,0.55]
[1732885277146,2.78394,3592.1,3591.8,0.55]
[1732885277943,2.78404,3591.9,3591.8,0.55]
[1732885278147,2.78404,3591.9,3591.4,0.8128]
[1732885278357,0.1035154,3591.8,3591.4,0.8128]
[1732885278781,2.78424,3591.7,3591.4,0.8128]
[1732885279163,2.78404,3591.9,3591.4,0.8128]
[1732885279484,2.78421,3591.7,3591.4,0.8128]
[1732885280660,2.78405,3591.9,3591.4,0.8128]
[1732885280878,2.88767786,3591.8,3591.4,0.8128]
[1732885281073,2.78419,3591.7,3591.6,0.1]
[1732885281787,2.78419,3591.7,3591.4,0.9128]
[1732885282084,2.78435,3591.5,3591.2,0.1]
[1732885282457,2.7845,3591.3,3591.2,0.1]
[1732885282782,0.556885,3591.3,3590.6,0.1]
[1732885283089,2.78477,3591.0,3590.6,0.1]
[1732885283298,2.78511,3590.6,3590.3,0.7865]
[1732885283497,2.78511,3590.6,3590.5,0.1]
[1732885284053,2.78454,3591.3,3590.3,0.8865]
[1732885284253,2.7851,3590.6,3590.3,0.8865]
[1732885284994,2.78503,3590.7,3590.3,0.7865]
[1732885285290,2.78505,3590.6,3590.3,0.7865]
[1732885285801,2.78505,3590.6,3590.5,0.1]
[1732885286565,2.78492,3590.8,3590.5,0.1]
[1732885286766,2.78474,3591.0,3590.5,0.1]
[1732885287071,2.78456,3591.3,3590.9,0.1]
[1732885287273,2.78459,3591.2,3590.9,0.1]
[1732885287510,2.78444,3591.4,3590.9,0.1]
[1732885287803,2.78411,3591.8,3590.9,0.9256]
[1732885288009,2.7846,3591.2,3590.9,0.9256]
[1732885288511,2.78362,3592.5,3591.3,0.1]
[1732885288665,2.78372,3592.4,3591.8,0.1]
[1732885288990,2.7837,3592.4,3591.8,0.1]
[1732885289168,2.78379,3592.3,3591.8,0.1]
[1732885289368,2.78385,3592.2,3591.8,0.1]
[1732885289909,2.78334,3592.9,3591.6,0.1]
[1732885290105,6.04999606,3593.1,3591.2,0.55]
[1732885290106,2.78404,3591.9,3591.2,0.55]
[1732885290274,2.7842,3591.7,3591.6,0.1]
[1732885291120,2.78404,3591.9,3591.6,0.1]
[1732885291493,2.78391,3592.1,3591.6,0.1]
[1732885291800,2.78401,3592.0,3591.6,0.1]
[1732885292375,2.78404,3591.9,3591.6,0.1]
[1732885292771,2.78412,3591.8,3591.6,0.1]
[1732885293109,3.0,3592.7,3591.6,0.1]
[1732885293328,2.78401,3592.0,3591.6,0.1]
[1732885293524,2.8861774,3591.9,3591.6,0.1]
[1732885293742,0.1021274,3591.8,3591.6,0.1]
[1732885293898,2.8862474,3591.8,3591.6,0.1]
[1732885294213,2.78419,3591.7,3591.6,0.1]
[1732885294421,2.88631439,3591.7,3591.6,0.1]
[1732885294599,2.88631439,3591.7,3591.2,0.1]
[1732885294800,2.78443,3591.4,3591.3,0.1]
[1732885294991,2.78433,3591.6,3591.3,0.1]
[1732885295219,0.10214255,3591.5,3591.3,0.1]
[1732885295928,2.78433,3591.6,3591.3,0.1]
[1732885297428,2.78433,3591.6,3591.0,0.8505]
[1732885297639,2.78433,3591.6,3591.3,0.1]
[1732885298644,2.7842,3591.7,3591.3,0.1]
[1732885298799,0.10211807,3591.6,3591.3,0.1]
[1732885299137,2.88639807,3591.6,3591.3,0.1]
[1732885299318,2.78413,3591.8,3591.3,0.1]
[1732885299495,0.1021188,3591.7,3591.3,0.1]
[1732885299700,0.1021188,3591.6,3591.3,0.1]
[1732885302297,2.7770215,3591.5,3591.3,0.1]
[1732885302634,2.78424,3591.7,3591.3,0.1]
[1732885302943,3.04999606,3592.4,3591.3,3.247975]
[1732885302944,0.10208974,3591.6,3591.3,3.247975]
[1732885303101,0.10208974,3592.1,3591.5,4.20905]
[1732885303438,0.10208974,3592.0,3591.8,0.1]
[1732885303639,0.10208974,3591.9,3591.8,0.1]
[1732885303932,2.78367,3592.4,3591.8,2.88411]
[1732885304134,0.10208974,3592.3,3591.8,2.88411]
[1732885304337,0.10208974,3592.2,3591.8,2.88411]
[1732885304638,2.78373,3592.3,3591.8,2.88411]
[1732885304639,0.10208974,3592.1,3591.8,2.88411]
[1732885304931,0.10208974,3592.0,3591.8,0.799308]
[1732885305138,0.10208974,3592.3,3591.8,0.799308]
[1732885305333,0.10208974,3592.2,3591.8,0.799308]
[1732885305637,0.10208974,3592.1,3592.0,0.8104]
[1732885305805,0.10208974,3592.4,3592.0,0.8104]
[1732885306001,2.78343,3592.7,3592.3,0.1]
[1732885306316,0.1021035,3592.6,3592.3,0.1]
[1732885306527,0.1021035,3592.5,3592.3,0.1]
[1732885306734,0.1021035,3592.4,3592.3,0.1]
[1732885307043,2.8855335,3592.7,3592.3,0.1]
[1732885307239,0.1021035,3592.6,3592.3,0.1]
[1732885307430,0.1021035,3592.5,3592.3,0.1]
[1732885307637,0.1021035,3592.6,3592.3,0.1]
[1732885307807,0.1021035,3592.5,3592.3,0.1]
[1732885308002,2.8856035,3592.6,3592.3,0.1]
[1732885308202,0.1021035,3592.5,3592.3,0.1]
[1732885308421,2.7835,3592.6,3592.3,0.1]
[1732885308627,2.8856935,3592.5,3592.3,0.1]
[1732885308836,0.1021035,3592.4,3592.3,0.1]
[1732885309315,2.8856135,3592.6,3592.3,0.1]
[1732885309513,0.1021035,3592.6,3592.3,0.1]
[1732885309718,0.1021035,3592.5,3592.3,0.1]
[1732885309958,0.1021035,3592.6,3592.3,0.1]
[1732885310130,0.1021035,3592.5,3592.3,0.1]
[1732885310327,0.1021035,3592.6,3592.3,0.1]
[1732885311454,0.1021035,3592.6,3592.5,3.66327]
[1732885311645,2.8852135,3593.1,3592.5,3.66327]
[1732885311843,0.1021035,3593.0,3592.8,0.1]
[1732885312118,0.1021035,3593.2,3592.8,0.1]
[1732885312276,2.8852835,3593.1,3592.8,0.1]
[1732885312437,0.1021035,3593.0,3592.8,0.1]
[1732885312859,0.10201204,3593.0,3592.8,0.1]
[1732885313364,2.78291,3593.4,3592.8,0.1]
[1732885313365,2.88510204,3593.2,3592.8,0.1]
[1732885313532,0.10201204,3593.1,3592.8,0.1]
[1732885313728,2.88501204,3593.3,3592.8,0.1]
[1732885314062,0.10201204,3593.2,3592.8,0.1]
[1732885314565,0.10201204,3593.2,3592.9,0.7856]
[1732885314764,0.10201204,3593.4,3592.9,0.7856]
[1732885315352,0.10201204,3593.4,3592.9,3.56885]
[1732885316551,2.88490204,3593.4,3592.9,0.7856]
[1732885316755,2.78318,3593.0,3592.9,0.7856]
[1732885317083,2.78318,3593.0,3592.5,0.8516]
[1732885317084,2.78326,3592.9,3592.5,0.8516]
[1732885317286,3.04999606,3593.5,3592.3,0.1]
[1732885317456,2.78357,3592.6,3592.5,0.1]
[1732885317662,2.78335,3592.8,3592.5,0.1]
[1732885317848,2.88539796,3592.7,3592.5,0.1]
[1732885318188,2.78342,3592.7,3592.5,0.1]
[1732885318597,2.78351,3592.6,3592.3,0.1]
[1732885318890,2.7836,3592.5,3591.9,3.57452]
[1732885319103,2.88564025,3592.4,3592.0,0.367452]
[1732885319283,2.78344,3592.7,3592.4,0.1]
[1732885319657,2.78363,3592.5,3592.0,0.1]
[1732885319806,5.83313606,3593.1,3592.3,0.1]
[1732885319807,2.88565271,3592.4,3592.3,0.1]
[1732885319973,2.78354,3592.6,3592.3,0.1]
[1732885320178,2.78328,3592.9,3592.3,0.1]
[1732885320379,0.10196673,3592.8,3592.3,0.666782]
[1732885320706,0.10196673,3592.8,3592.7,2.88342]
[1732885321002,2.88488704,3593.4,3592.7,0.65]
[1732885321212,2.78323,3593.0,3592.7,0.1]
[1732885321366,2.7831,3593.2,3592.7,0.1]
[1732885321709,0.10199428,3593.1,3592.7,0.464259]
[1732885321892,0.10199428,3593.2,3592.7,3.247669]
[1732885322101,2.88501507,3593.2,3592.7,0.464259]
[1732885322289,0.10198507,3593.1,3592.7,0.464259]
[1732885322493,0.10198507,3593.1,3592.7,3.247649]
[1732885322688,0.10198507,3593.1,3592.8,0.6031139]
[1732885323099,2.78312,3593.1,3592.9,0.1]
[1732885323283,0.10198507,3593.2,3592.9,0.1]
[1732885323284,2.78307,3593.2,3592.9,0.1]
[1732885323485,2.78333,3592.9,3592.5,0.1]
[1732885323814,2.7834,3592.8,3592.5,0.1]
[1732885324415,2.78346,3592.7,3592.5,0.1]
[1732885324638,2.78318,3593.0,3592.1,0.9255]
[1732885324813,2.78365,3592.4,3592.1,0.9255]
[1732885325113,2.78359,3592.5,3592.1,1.874863]
[1732885325811,2.78359,3592.5,3592.1,1.049363]
[1732885326111,2.78391,3592.1,3591.9,0.1]
[1732885326411,2.78377,3592.3,3592.2,0.1]
[1732885326569,2.88572835,3592.3,3592.2,0.1]
[1732885326775,2.78377,3592.3,3592.2,0.1]
[1732885327618,2.88574756,3592.3,3592.2,0.1]
[1732885327912,2.78368,3592.4,3592.2,0.1]
[1732885328408,2.78373,3592.3,3592.2,0.1]
[1732885329487,2.8857515,3592.3,3592.2,0.1]
[1732885330388,2.8857515,3592.3,3592.0,0.1]
[1732885330576,2.78398,3592.0,3591.8,0.8713]
[1732885331296,2.78404,3591.9,3591.8,0.1]
[1732885331534,2.78398,3592.0,3591.8,0.1]
[1732885332034,0.10206157,3591.9,3591.8,0.1]
[1732885332338,2.78383,3592.2,3591.8,0.1]
[1732885332539,2.78335,3592.8,3591.8,0.1]
[1732885332839,2.78386,3592.2,3591.8,0.1]
[1732885333151,0.10209006,3592.1,3591.8,0.1]
[1732885333440,0.10209006,3592.0,3591.8,0.1]
[1732885334013,0.10209006,3592.1,3591.8,0.1]
[1732885334202,0.10209006,3592.0,3591.8,2.8841]
[1732885334400,0.10209006,3592.3,3592.2,0.1]
[1732885334699,0.10209006,3592.7,3592.6,0.1]
[1732885334817,0.10209006,3592.7,3592.6,0.9331]
[1732885335021,0.10209006,3593.0,3592.6,0.9331]
[1732885335220,0.10209006,3592.9,3592.6,3.71658]
[1732885335415,2.78296,3593.3,3592.6,3.71658]
[1732885335416,0.10209006,3592.8,3592.7,2.78341]
[1732885335757,0.10209006,3593.2,3592.8,2.78333]
[1732885335954,0.10209006,3593.2,3593.1,3.57021]
[1732885336240,2.78267,3593.7,3593.2,2.78302]
[1732885336241,0.10217162,3593.6,3593.2,2.78302]
[1732885336402,0.10217162,3593.5,3593.2,0.367012]
[1732885336611,2.7825,3593.9,3593.2,0.367012]
[1732885336612,2.78257,3593.8,3593.4,0.1]
[1732885336910,2.88480091,3593.7,3593.6,0.1]
[1732885337318,2.78285,3593.5,3593.1,0.7871]
[1732885337524,2.88511091,3593.4,3593.2,0.1]
[1732885337707,0.10216091,3593.3,3593.2,0.1]
[1732885338139,0.10216091,3593.4,3593.2,0.467034]
[1732885338464,0.10216091,3593.3,3593.2,0.467034]
[1732885338667,2.88496091,3593.5,3593.2,0.467034]
[1732885338835,0.10216091,3593.4,3593.2,0.1]
[1732885339164,0.10210717,3593.3,3593.2,0.1]
[1732885339378,0.1021031,3593.3,3593.2,0.1]
[1732885339569,0.1021031,3593.4,3593.2,0.1]
[1732885339861,0.1021031,3593.3,3593.2,0.1]
[1732885340685,0.1021031,3593.3,3592.8,0.9267]
[1732885340856,2.78315,3593.1,3592.8,0.9267]
[1732885341033,2.78303,3593.2,3593.1,0.1]
[1732885341366,0.10207484,3593.2,3592.8,0.9267]
[1732885341567,2.88468484,3593.8,3593.1,3.71261]
[1732885341733,0.10207484,3593.7,3593.2,2.78303]
[1732885342065,0.10207484,3593.6,3593.1,0.9295]
[1732885342385,0.10207484,3593.5,3593.1,3.71254]
[1732885342548,0.10205914,3593.6,3593.1,3.71254]
[1732885342751,0.10205914,3593.5,3593.1,3.71254]
[1732885342929,0.10205914,3593.6,3593.1,0.9295]
[1732885343126,0.10205914,3593.5,3593.1,0.9295]
[1732885343329,0.10205914,3593.4,3593.1,0.9295]
[1732885343530,0.10205914,3593.5,3593.1,0.9295]
[1732885344175,0.10205914,3593.4,3593.1,3.7126]
[1732885344343,0.10205914,3593.6,3593.1,0.9295]
[1732885344679,0.10205914,3593.5,3593.1,3.71256]
[1732885344828,0.10205914,3593.6,3593.1,3.71256]
[1732885345029,0.10205914,3593.5,3593.2,0.1]
[1732885345275,0.10205914,3593.4,3593.2,0.1]
[1732885345457,0.10202634,3594.1,3593.2,0.1]
[1732885345659,2.78264,3593.7,3593.2,0.1]
[1732885345854,2.78257,3593.8,3593.2,2.88302]
[1732885346075,0.10202634,3593.6,3593.2,2.88302]
[1732885346268,0.10202634,3593.7,3593.2,3.532632]
[1732885346471,0.10202634,3593.6,3593.2,3.532632]
[1732885346791,0.10202634,3593.5,3593.2,0.749612]
[1732885346975,0.10202634,3593.4,3593.2,0.1]
[1732885347687,2.78295,3593.3,3593.2,0.1]
[1732885348249,2.7828,3593.5,3593.2,0.1]
[1732885348946,2.78289,3593.4,3593.2,0.1]
[1732885349246,2.78295,3593.3,3593.2,0.1]
[1732885349879,0.10200918,3593.3,3593.2,0.1]
[1732885350853,2.78289,3593.4,3593.2,0.1]
[1732885352786,2.78275,3593.6,3593.2,0.1]
[1732885353091,2.78291,3593.4,3593.2,0.1]
[1732885353501,2.78295,3593.3,3593.2,0.1]
[1732885355197,2.78288,3593.4,3593.2,0.1]
[1732885356999,0.10198149,3593.3,3593.2,0.1]
[1732885357963,2.7825,3593.9,3593.2,0.1]
[1732885357964,2.88457393,3593.8,3593.4,0.1]
[1732885358162,0.10200393,3593.7,3593.4,0.1]
[1732885358362,2.78269,3593.7,3593.4,0.1]
[1732885358672,0.10200393,3593.6,3593.4,0.1]
[1732885359897,0.10200393,3593.8,3593.4,0.1]
[1732885360098,2.88469393,3593.7,3593.4,0.1]
[1732885360299,2.7828,3593.5,3593.4,0.1]
[1732885360596,2.78295,3593.3,3593.2,0.1]
[1732885360803,2.88495393,3593.3,3593.2,0.1]
[1732885361699,2.88495393,3593.3,3593.0,0.1]
[1732885361900,2.88505393,3593.2,3593.0,0.1]
[1732885362077,0.10200393,3593.1,3593.0,0.1]
[1732885362713,0.10200393,3593.3,3593.0,0.1]
[1732885362913,0.10200393,3593.2,3593.1,0.368143]
[1732885363217,0.10200393,3593.3,3593.1,0.368143]
[1732885363424,0.10200393,3593.2,3593.1,0.368143]
[1732885363891,0.10200393,3593.2,3593.0,0.1]
[1732885364085,0.10200393,3593.1,3593.0,0.1]
[1732885366205,2.78295,3593.3,3593.2,0.1]
[1732885368634,2.7828,3593.5,3593.2,0.1]
[1732885369238,2.78289,3593.4,3593.2,0.1]
[1732885370405,2.78295,3593.3,3593.2,0.1]
[1732885372604,5.56598,3593.3,3593.2,0.1]
[1732885373099,2.78334,3592.8,3592.5,0.1]
[1732885373302,2.78349,3592.6,3592.5,0.1]
[1732885374601,2.78373,3592.3,3592.2,0.1]
[1732885374800,2.78373,3592.3,3591.7,0.775]
[1732885375040,2.78396,3592.0,3591.8,0.1]
[1732885375253,2.78404,3591.9,3591.8,0.1]
[1732885375549,2.78419,3591.7,3591.6,0.1]
[1732885377236,2.7841,3591.9,3591.6,0.1]
[1732885377437,2.7841,3591.9,3591.8,0.1]
[1732885377765,2.7841,3591.9,3591.6,0.1]
[1732885378127,2.78413,3591.8,3591.6,0.1]
[1732885378457,2.78452,3591.3,3591.1,0.9216]
[1732885378757,2.78434,3591.6,3591.5,0.1]
[1732885379321,2.78427,3591.6,3591.5,0.1]
[1732885379560,2.78419,3591.7,3591.5,0.1]
[1732885379948,2.78419,3591.7,3590.9,2.7848]
[1732885379949,2.78451,3591.3,3590.9,0.1]
[1732885380458,2.78436,3591.5,3590.9,0.1]
[1732885380459,2.78436,3591.5,3590.9,0.76532]
[1732885380623,2.78458,3591.2,3590.9,0.76532]
[1732885381079,2.78462,3591.2,3590.9,0.76532]
[1732885381288,2.78473,3591.0,3590.7,0.1]
[1732885381444,2.7848,3591.0,3590.7,0.1]
[1732885381978,2.78427,3591.6,3590.9,0.1]
[1732885382193,2.78471,3591.1,3590.9,0.1]
[1732885382344,2.78442,3591.4,3591.3,0.1]
[1732885385679,2.78405,3591.9,3591.7,0.1]
[1732885385857,3.04999606,3593.1,3591.8,0.55]
[1732885385858,2.78381,3592.2,3591.8,0.55]
[1732885386541,2.78389,3592.1,3591.8,0.55]
[1732885386772,2.78374,3592.3,3591.8,0.55]
[1732885386773,2.78376,3592.3,3591.8,0.55]
[1732885386981,2.78397,3592.0,3591.8,0.55]
[1732885387356,2.78404,3592.0,3591.8,0.55]
[1732885387673,2.78404,3591.9,3591.8,0.55]
[1732885388340,2.78393,3592.1,3591.8,0.55]
[1732885388544,2.78403,3592.0,3591.8,0.55]
[1732885390542,2.78383,3592.2,3591.8,0.55]
[1732885390745,2.78403,3592.0,3591.8,0.55]
[1732885391480,2.78396,3592.0,3591.8,0.55]
[1732885392357,3.04999606,3592.4,3591.4,0.1]
[1732885392555,2.7845,3591.3,3590.9,0.1]
[1732885392888,2.78479,3591.0,3590.7,0.9297]
[1732885393482,3.04999606,3592.0,3590.8,0.1]
[1732885393686,2.78395,3592.1,3591.0,0.1]
[1732885393687,2.78466,3591.1,3591.0,0.1]
[1732885393847,2.78481,3591.0,3590.9,0.1]
[1732885394047,2.78481,3591.0,3590.7,0.1]
[1732885394247,2.78483,3590.9,3590.7,0.1]
[1732885394577,2.78466,3591.1,3591.0,0.1]
[1732885394822,2.78479,3591.0,3590.9,0.1]
[1732885395167,2.78457,3591.3,3590.9,0.1]
[1732885395571,2.78467,3591.1,3590.9,0.1]
[1732885395781,2.78436,3591.5,3590.9,0.1]
[1732885395951,2.78451,3591.3,3591.0,1.3141]
[1732885396487,2.78454,3591.3,3591.0,1.3141]
[1732885396786,2.78408,3591.9,3590.9,0.1]
[1732885397084,2.78473,3591.0,3590.9,0.1]
[1732885397449,2.78483,3590.9,3590.7,0.8637]
[1732885398083,2.78489,3590.8,3590.7,0.65]
[1732885398249,2.78475,3591.0,3590.8,0.1]
[1732885398453,2.78466,3591.1,3590.8,0.1]
[1732885398663,2.78481,3590.9,3590.8,0.1]
[1732885400095,3.04999606,3591.6,3590.8,0.1]
[1732885400096,2.78451,3591.3,3590.9,0.55]
[1732885400454,2.78451,3591.3,3591.1,0.55]
[1732885400667,2.78458,3591.2,3591.1,0.55]
[1732885401069,2.78437,3591.5,3591.1,0.55]
[1732885401693,2.78422,3591.7,3591.2,0.7525]
[1732885401898,2.78407,3591.9,3591.2,0.7525]
[1732885401899,2.7843,3591.6,3591.3,0.1]
[1732885402063,2.78437,3591.5,3591.3,0.1]
[1732885402876,5.56776,3592.1,3591.3,0.1]
[1732885403096,2.7844,3591.5,3591.3,0.65]
[1732885403302,2.78409,3591.9,3591.3,0.65]
[1732885403503,2.78425,3591.7,3591.3,0.65]
[1732885403703,2.78409,3591.9,3591.5,0.1]
[1732885403998,2.78412,3591.8,3591.5,0.1]
[1732885404201,2.78423,3591.7,3591.5,0.1]
[1732885404407,2.78427,3591.6,3591.5,0.1]
[1732885405101,2.78427,3591.6,3591.3,0.55]
[1732885405288,2.78466,3591.1,3590.8,0.7618]
[1732885405473,2.78481,3591.0,3590.7,0.1]
[1732885406090,2.78483,3590.9,3590.7,0.1]
[1732885407025,2.78489,3590.8,3590.5,0.8618]
[1732885407729,2.78489,3590.8,3590.6,0.55]
[1732885407887,2.78497,3590.7,3590.6,0.55]
[1732885408796,2.78497,3590.7,3590.5,0.8618]
[1732885408993,2.7852,3590.4,3590.3,0.1]
[1732885409212,2.78529,3590.3,3590.1,0.1]
[1732885409583,2.7853,3590.3,3590.0,0.1]
[1732885410282,2.7853,3590.3,3590.1,0.55]
[1732885411222,2.78543,3590.1,3590.0,0.1]
[1732885411519,2.78543,3590.1,3589.9,0.7974]
[1732885411720,2.78551,3590.0,3589.9,0.7974]
[1732885412091,2.78551,3590.0,3589.6,0.9121]
[1732885412287,2.78574,3589.7,3589.4,0.1]
[1732885412490,2.78574,3589.7,3589.6,0.1]
[1732885412826,2.78588,3589.6,3589.5,0.1]
[1732885413031,2.78588,3589.6,3588.8,3.34692866]
[1732885413032,2.78574,3589.7,3589.2,0.1]
[1732885413320,2.78598,3589.5,3589.2,0.1]
[1732885413706,2.78605,3589.3,3589.0,0.7531]
[1732885414099,2.78605,3589.3,3589.1,0.05213102]
[1732885414310,2.78598,3589.5,3589.2,0.55]
[1732885414638,2.78595,3589.5,3589.2,0.6906934]
[1732885414789,2.78595,3589.5,3589.4,0.1]
[1732885415388,2.78559,3589.9,3589.6,0.1]
[1732885415595,3.04999606,3590.6,3589.6,0.1]
[1732885415823,2.78565,3589.9,3589.6,0.1]
[1732885416133,2.78574,3589.7,3589.6,0.1]
[1732885416841,2.78596,3589.5,3588.9,0.9086]
[1732885416997,2.78613,3589.2,3589.1,0.1]
[1732885417363,2.78613,3589.2,3589.1,0.14080079]
[1732885417532,2.78613,3589.2,3589.1,0.04080079]
[1732885417713,2.78631,3589.0,3588.9,0.1]
[1732885417916,2.78631,3589.0,3588.6,0.7974]
[1732885417917,2.78635,3589.0,3588.6,0.7974]
[1732885418235,2.78635,3589.0,3588.9,0.04614254]
[1732885418393,2.78635,3589.0,3588.9,0.1]
[1732885418799,2.78635,3589.0,3588.9,0.14614254]
[1732885419034,2.78635,3589.0,3588.9,0.04614254]
[1732885419440,2.78635,3589.0,3588.6,0.1]
[1732885419743,2.78582,3589.6,3588.7,0.04638421]
[1732885419924,2.78644,3588.8,3588.4,0.1]
[1732885420101,2.78652,3588.7,3588.4,0.1]
[1732885420536,2.78652,3588.7,3588.5,0.04144526]